[Event "December 19 Early 2023"]
[Site "https://www.chess.com"]
[Date "2023.12.19"]
[Round "3"]
[White "Nanu, Costica-Ciprian"]
[Black "Guimaraes, Wagner Peixoto"]
[Result "1/2-1/2"]
[Board "155"]
[TimeControl "180+1"]
[WhiteFideId "1204580"]
[BlackFideId "2100940"]
[WhiteElo "2485"]
[BlackElo "2140"]
[WhiteTeam "ROU"]
[BlackTeam "BRA"]
[WhiteClock "0:00:55"]
[BlackClock "0:00:28"]

1. a3 {[%clk 0:03:00]}  g6 {[%clk 0:02:56]} 2. c4 {[%clk 0:02:57]}  Bg7 {[%clk 0:02:55]} 3. Nc3 {[%clk 0:02:58]}  Nf6 {[%clk 0:02:53]} 4. g3 {[%clk 0:02:55]}  O-O {[%clk 0:02:52]} 5. Bg2 {[%clk 0:02:56]}  c5 {[%clk 0:02:53]} 6. d3 {[%clk 0:02:56]}  Nc6 {[%clk 0:02:53]} 7. e3 {[%clk 0:02:56]}  d6 {[%clk 0:02:53]} 8. Nge2 {[%clk 0:02:56]}  Rb8 {[%clk 0:02:52]} 9. h4 {[%clk 0:02:55]}  Bd7 {[%clk 0:02:52]} 10. Nf4 {[%clk 0:02:53]}  h5 {[%clk 0:02:50]} 11. Nfd5 {[%clk 0:02:52]}  Nxd5 {[%clk 0:02:49]} 12. Nxd5 {[%clk 0:02:52]}  e6 {[%clk 0:02:49]} 13. Nc3 {[%clk 0:02:51]}  a6 {[%clk 0:02:48]} 14. Bd2 {[%clk 0:02:50]}  b5 {[%clk 0:02:48]} 15. b3 {[%clk 0:02:49]}  Ne5 {[%clk 0:02:46]} 16. Qc2 {[%clk 0:02:46]}  b4 {[%clk 0:02:38]} 17. axb4 {[%clk 0:02:38]}  cxb4 {[%clk 0:02:39]} 18. Ne4 {[%clk 0:02:38]}  Nxd3+ {[%clk 0:02:37]} 19. Qxd3 {[%clk 0:02:39]}  Bxa1 {[%clk 0:02:37]} 20. Nxd6 {[%clk 0:02:36]}  Bc3 {[%clk 0:02:10]} 21. Bxc3 {[%clk 0:02:29]}  bxc3 {[%clk 0:02:11]} 22. Qxc3 {[%clk 0:02:28]}  Bc6 {[%clk 0:02:07]} 23. Ne4 {[%clk 0:02:22]}  Bxe4 {[%clk 0:02:07]} 24. Bxe4 {[%clk 0:02:23]}  Qb6 {[%clk 0:02:01]} 25. O-O {[%clk 0:02:21]}  Qxb3 {[%clk 0:01:57]} 26. Qf6 {[%clk 0:02:21]}  Qb2 {[%clk 0:01:47]} 27. Qg5 {[%clk 0:02:16]}  Rbc8 {[%clk 0:01:42]} 28. c5 {[%clk 0:02:07]}  Kg7 {[%clk 0:01:28]} 29. c6 {[%clk 0:01:56]}  Qf6 {[%clk 0:01:24]} 30. Qc5 {[%clk 0:01:55]}  Rc7 {[%clk 0:01:19]} 31. Qb6 {[%clk 0:01:53]}  Rfc8 {[%clk 0:01:16]} 32. Qxa6 {[%clk 0:01:52]}  Qc3 {[%clk 0:01:14]} 33. Rd1 {[%clk 0:01:43]}  Rxc6 {[%clk 0:01:11]} 34. Bxc6 {[%clk 0:01:44]}  Qxc6 {[%clk 0:01:11]} 35. Qa1+ {[%clk 0:01:43]}  Qc3 {[%clk 0:01:11]} 36. Qa6 {[%clk 0:01:41]}  Qc6 {[%clk 0:01:10]} 37. Qa3 {[%clk 0:01:40]}  Qc3 {[%clk 0:01:10]} 38. Qd6 {[%clk 0:01:40]}  Qc5 {[%clk 0:01:09]} 39. Qd3 {[%clk 0:01:40]}  Qc4 {[%clk 0:01:08]} 40. Qd2 {[%clk 0:01:39]}  Qc3 {[%clk 0:01:08]} 41. Qd6 {[%clk 0:01:39]}  Qc6 {[%clk 0:01:08]} 42. Qf4 {[%clk 0:01:39]}  Qc2 {[%clk 0:01:03]} 43. Qe5+ {[%clk 0:01:38]}  Kg8 {[%clk 0:01:03]} 44. Rd7 {[%clk 0:01:37]}  Qc1+ {[%clk 0:01:02]} 45. Kh2 {[%clk 0:01:37]}  Rf8 {[%clk 0:01:01]} 46. Qf4 {[%clk 0:01:34]}  Qc6 {[%clk 0:00:59]} 47. Rc7 {[%clk 0:01:34]}  Qd5 {[%clk 0:00:58]} 48. Ra7 {[%clk 0:01:28]}  Qd2 {[%clk 0:00:50]} 49. g4 {[%clk 0:01:26]}  hxg4 {[%clk 0:00:45]} 50. h5 {[%clk 0:01:26]}  Qd5 {[%clk 0:00:45]} 51. hxg6 {[%clk 0:01:21]}  Qh5+ {[%clk 0:00:42]} 52. Kg2 {[%clk 0:01:19]}  Qxg6 {[%clk 0:00:40]} 53. Ra5 {[%clk 0:01:18]}  f6 {[%clk 0:00:38]} 54. Qc4 {[%clk 0:01:10]}  Re8 {[%clk 0:00:32]} 55. Ra6 {[%clk 0:01:08]}  Qf5 {[%clk 0:00:29]} 56. Ra7 {[%clk 0:01:00]}  Qf3+ {[%clk 0:00:28]} 57. Kg1 {[%clk 0:01:00]}  g3 {[%clk 0:00:27]} 58. Qf4 {[%clk 0:00:51]}  gxf2+ {[%clk 0:00:24]} 59. Kf1 {[%clk 0:00:51]}  Qxf4 {[%clk 0:00:21]} 60. exf4 {[%clk 0:00:50]}  e5 {[%clk 0:00:21]} 61. fxe5 {[%clk 0:00:49]}  Rxe5 {[%clk 0:00:22]} 62. Kxf2 {[%clk 0:00:50]}  Kf8 {[%clk 0:00:22]} 63. Kf3 {[%clk 0:00:50]}  Re7 {[%clk 0:00:22]} 64. Rxe7 {[%clk 0:00:48]}  Kxe7 {[%clk 0:00:23]} 65. Kf4 {[%clk 0:00:48]}  Ke6 {[%clk 0:00:23]} 66. Ke4 {[%clk 0:00:49]}  f5+ {[%clk 0:00:23]} 67. Kf4 {[%clk 0:00:50]}  Kf6 {[%clk 0:00:24]} 68. Kf3 {[%clk 0:00:50]}  Ke5 {[%clk 0:00:24]} 69. Ke3 {[%clk 0:00:51]}  f4+ {[%clk 0:00:25]} 70. Kf3 {[%clk 0:00:52]}  Kf5 {[%clk 0:00:25]} 71. Kf2 {[%clk 0:00:52]}  Ke4 {[%clk 0:00:26]} 72. Ke2 {[%clk 0:00:53]}  f3+ {[%clk 0:00:26]} 73. Kf2 {[%clk 0:00:53]}  Kf4 {[%clk 0:00:27]} 74. Kf1 {[%clk 0:00:54]}  Ke3 {[%clk 0:00:27]} 75. Ke1 {[%clk 0:00:54]}  f2+ {[%clk 0:00:28]} 76. Kf1 {[%clk 0:00:55]}  Kf3 {[%clk 0:00:28]} 1/2-1/2

[Event "December 19 Early 2023"]
[Site "https://www.chess.com"]
[Date "2023.12.19"]
[Round "3"]
[White "Han, Yichen"]
[Black "Sarkar, Justin"]
[Result "1-0"]
[Board "156"]
[TimeControl "180+1"]
[WhiteFideId "1054430"]
[BlackFideId "2010011"]
[WhiteElo "2305"]
[BlackElo "2138"]
[WhiteTeam "NED"]
[BlackTeam "USA"]
[WhiteClock "0:01:18"]
[BlackClock "0:00:13"]

1. e4 {[%clk 0:03:00]}  e5 {[%clk 0:02:27]} 2. Nf3 {[%clk 0:02:47]}  Nc6 {[%clk 0:02:26]} 3. Nc3 {[%clk 0:02:43]}  a6 {[%clk 0:02:16]} 4. d4 {[%clk 0:02:40]}  exd4 {[%clk 0:02:12]} 5. Nxd4 {[%clk 0:02:41]}  Bc5 {[%clk 0:02:07]} 6. Nf5 {[%clk 0:02:22]}  g6 {[%clk 0:01:59]} 7. Be3 {[%clk 0:02:08]}  Bxe3 {[%clk 0:01:42]} 8. Nxe3 {[%clk 0:02:09]}  Nf6 {[%clk 0:01:42]} 9. Bd3 {[%clk 0:01:54]}  O-O {[%clk 0:01:39]} 10. O-O {[%clk 0:01:51]}  d6 {[%clk 0:01:36]} 11. Qd2 {[%clk 0:01:42]}  Ne5 {[%clk 0:01:18]} 12. Be2 {[%clk 0:01:33]}  b5 {[%clk 0:01:13]} 13. f4 {[%clk 0:01:30]}  b4 {[%clk 0:00:58]} 14. Ncd5 {[%clk 0:01:18]}  Nxe4 {[%clk 0:00:13]} 15. Qxb4 {[%clk 0:01:18]} 1-0

[Event "December 19 Early 2023"]
[Site "https://www.chess.com"]
[Date "2023.12.19"]
[Round "3"]
[White "Petrukhina, Olga"]
[Black "Ismagilov, Damir"]
[Result "0-1"]
[Board "157"]
[TimeControl "180+1"]
[WhiteFideId "13703935"]
[BlackFideId "34199982"]
[WhiteElo "1991"]
[BlackElo "2131"]
[WhiteTeam "KAZ"]
[BlackTeam "RUS"]
[WhiteClock "0:00:00"]
[BlackClock "0:00:04"]

1. d4 {[%clk 0:03:00]}  f5 {[%clk 0:02:58]} 2. Bg5 {[%clk 0:02:57]}  g6 {[%clk 0:02:54]} 3. Nc3 {[%clk 0:02:48]}  Bg7 {[%clk 0:02:54]} 4. e3 {[%clk 0:02:48]}  Nf6 {[%clk 0:02:53]} 5. Bc4 {[%clk 0:02:48]}  e6 {[%clk 0:02:45]} 6. Nf3 {[%clk 0:02:40]}  d6 {[%clk 0:02:38]} 7. h4 {[%clk 0:02:36]}  h6 {[%clk 0:02:38]} 8. Bf4 {[%clk 0:02:35]}  O-O {[%clk 0:02:37]} 9. Qe2 {[%clk 0:02:18]}  Qe8 {[%clk 0:02:23]} 10. Bh2 {[%clk 0:02:06]}  Nc6 {[%clk 0:02:21]} 11. O-O-O {[%clk 0:01:56]}  Na5 {[%clk 0:02:16]} 12. Bb5 {[%clk 0:01:49]}  Bd7 {[%clk 0:02:11]} 13. Bxd7 {[%clk 0:01:48]}  Qxd7 {[%clk 0:02:05]} 14. e4 {[%clk 0:01:48]}  Ng4 {[%clk 0:01:52]} 15. exf5 {[%clk 0:01:02]}  exf5 {[%clk 0:01:46]} 16. Bf4 {[%clk 0:00:59]}  Rae8 {[%clk 0:01:47]} 17. Qd2 {[%clk 0:00:59]}  Nc4 {[%clk 0:01:42]} 18. Qd3 {[%clk 0:00:58]}  b5 {[%clk 0:01:37]} 19. Rhf1 {[%clk 0:00:50]}  a6 {[%clk 0:01:33]} 20. Nd2 {[%clk 0:00:41]}  Nb6 {[%clk 0:01:07]} 21. f3 {[%clk 0:00:25]}  Nf6 {[%clk 0:01:06]} 22. Nb3 {[%clk 0:00:21]}  b4 {[%clk 0:00:54]} 23. Nb1 {[%clk 0:00:14]}  Nfd5 {[%clk 0:00:52]} 24. Bd2 {[%clk 0:00:12]}  a5 {[%clk 0:00:49]} 25. Rde1 {[%clk 0:00:08]}  a4 {[%clk 0:00:47]} 26. Na5 {[%clk 0:00:08]}  c5 {[%clk 0:00:28]} 27. Nc4 {[%clk 0:00:07]}  Kh8 {[%clk 0:00:17]} 28. Nxb6 {[%clk 0:00:07]}  Nxb6 {[%clk 0:00:16]} 29. dxc5 {[%clk 0:00:07]}  dxc5 {[%clk 0:00:16]} 30. Qxd7 {[%clk 0:00:06]}  Nxd7 {[%clk 0:00:17]} 31. Be3 {[%clk 0:00:05]}  Kh7 {[%clk 0:00:06]} 32. Nd2 {[%clk 0:00:05]}  a3 {[%clk 0:00:06]} 33. Nc4 {[%clk 0:00:04]}  axb2+ {[%clk 0:00:06]} 34. Nxb2 {[%clk 0:00:05]}  Ra8 {[%clk 0:00:06]} 35. Kb1 {[%clk 0:00:05]}  Rfe8 {[%clk 0:00:06]} 36. Nd3 {[%clk 0:00:03]}  Bc3 {[%clk 0:00:06]} 37. Re2 {[%clk 0:00:04]}  c4 {[%clk 0:00:05]} 38. Nc1 {[%clk 0:00:02]}  Nc5 {[%clk 0:00:03]} 39. Rff2 {[%clk 0:00:02]}  Na4 {[%clk 0:00:03]} 40. Bd2 {[%clk 0:00:00]}  Bg7 {[%clk 0:00:04]} 0-1

[Event "December 19 Early 2023"]
[Site "https://www.chess.com"]
[Date "2023.12.19"]
[Round "3"]
[White "Koutlas, Nikolaos"]
[Black "San Thit Lwin"]
[Result "1-0"]
[Board "158"]
[TimeControl "180+1"]
[WhiteFideId "25827138"]
[BlackFideId "13001272"]
[WhiteElo "2215"]
[BlackElo "2232"]
[WhiteTeam "GRE"]
[BlackTeam "MYA"]
[WhiteClock "0:00:09"]
[BlackClock "0:00:02"]

1. Nf3 {[%clk 0:03:00]}  Nf6 {[%clk 0:03:00]} 2. g3 {[%clk 0:02:59]}  d5 {[%clk 0:03:00]} 3. Bg2 {[%clk 0:03:00]}  Bf5 {[%clk 0:03:00]} 4. d3 {[%clk 0:03:00]}  e6 {[%clk 0:03:00]} 5. O-O {[%clk 0:03:00]}  Be7 {[%clk 0:03:00]} 6. Nbd2 {[%clk 0:03:00]}  O-O {[%clk 0:03:00]} 7. b3 {[%clk 0:03:00]}  Nbd7 {[%clk 0:03:00]} 8. Bb2 {[%clk 0:03:00]}  c5 {[%clk 0:03:00]} 9. Qe1 {[%clk 0:02:56]}  h6 {[%clk 0:02:58]} 10. e4 {[%clk 0:02:56]}  dxe4 {[%clk 0:02:55]} 11. dxe4 {[%clk 0:02:55]}  Bh7 {[%clk 0:02:55]} 12. Rd1 {[%clk 0:02:55]}  Qc7 {[%clk 0:02:52]} 13. e5 {[%clk 0:02:52]}  Nd5 {[%clk 0:02:51]} 14. Ne4 {[%clk 0:02:51]}  Nb4 {[%clk 0:02:42]} 15. Qe2 {[%clk 0:02:31]}  Rfd8 {[%clk 0:02:23]} 16. a3 {[%clk 0:02:29]}  Nc6 {[%clk 0:02:23]} 17. Nd6 {[%clk 0:01:33]}  Ndxe5 {[%clk 0:02:05]} 18. Nxb7 {[%clk 0:01:28]}  Nxf3+ {[%clk 0:01:43]} 19. Qxf3 {[%clk 0:01:26]}  Rxd1 {[%clk 0:01:35]} 20. Rxd1 {[%clk 0:01:25]}  Nd4 {[%clk 0:01:02]} 21. Bxd4 {[%clk 0:01:16]}  cxd4 {[%clk 0:01:02]} 22. Rxd4 {[%clk 0:01:16]}  Qxc2 {[%clk 0:00:56]} 23. b4 {[%clk 0:01:02]}  Rc8 {[%clk 0:00:44]} 24. Nd6 {[%clk 0:00:50]}  Qb1+ {[%clk 0:00:19]} 25. Bf1 {[%clk 0:00:49]}  Bxd6 {[%clk 0:00:15]} 26. Rxd6 {[%clk 0:00:49]}  Bg6 {[%clk 0:00:12]} 27. Rd1 {[%clk 0:00:25]}  Rc1 {[%clk 0:00:12]} 28. Rxc1 {[%clk 0:00:23]}  Qxc1 {[%clk 0:00:13]} 29. h4 {[%clk 0:00:19]}  Kh7 {[%clk 0:00:10]} 30. h5 {[%clk 0:00:18]}  Bf5 {[%clk 0:00:09]} 31. g4 {[%clk 0:00:16]}  Bc2 {[%clk 0:00:08]} 32. Kg2 {[%clk 0:00:14]}  Qg5 {[%clk 0:00:07]} 33. Bd3+ {[%clk 0:00:13]}  Bxd3 {[%clk 0:00:06]} 34. Qxd3+ {[%clk 0:00:14]}  f5 {[%clk 0:00:07]} 35. f3 {[%clk 0:00:12]}  g6 {[%clk 0:00:05]} 36. Qd7+ {[%clk 0:00:11]}  Kh8 {[%clk 0:00:05]} 37. Qe8+ {[%clk 0:00:11]}  Kg7 {[%clk 0:00:05]} 38. Qxg6+ {[%clk 0:00:09]}  Qxg6 {[%clk 0:00:05]} 39. hxg6 {[%clk 0:00:09]}  fxg4 {[%clk 0:00:04]} 40. a4 {[%clk 0:00:06]}  Kxg6 {[%clk 0:00:04]} 41. b5 {[%clk 0:00:05]}  gxf3+ {[%clk 0:00:04]} 42. Kxf3 {[%clk 0:00:05]}  Kf7 {[%clk 0:00:04]} 43. a5 {[%clk 0:00:05]}  Ke7 {[%clk 0:00:05]} 44. b6 {[%clk 0:00:05]}  axb6 {[%clk 0:00:05]} 45. a6 {[%clk 0:00:06]}  b5 {[%clk 0:00:04]} 46. a7 {[%clk 0:00:07]}  b4 {[%clk 0:00:05]} 47. a8=Q {[%clk 0:00:07]}  b3 {[%clk 0:00:06]} 48. Qb7+ {[%clk 0:00:08]}  Kf6 {[%clk 0:00:06]} 49. Qxb3 {[%clk 0:00:09]}  e5 {[%clk 0:00:06]} 50. Qe3 {[%clk 0:00:10]}  e4+ {[%clk 0:00:02]} 51. Qxe4 {[%clk 0:00:09]} 1-0

[Event "December 19 Early 2023"]
[Site "https://www.chess.com"]
[Date "2023.12.19"]
[Round "3"]
[White "Tulchynskyi, Feliks"]
[Black "Liu, Kelsey"]
[Result "1-0"]
[Board "162"]
[TimeControl "180+1"]
[WhiteFideId "34127895"]
[BlackFideId "30944481"]
[WhiteElo "2131"]
[BlackElo "2267"]
[WhiteTeam "UKR"]
[BlackTeam "USA"]
[WhiteClock "0:00:26"]
[BlackClock "0:00:05"]

1. c4 {[%clk 0:03:00]}  Nf6 {[%clk 0:01:07]} 2. Nc3 {[%clk 0:03:00]}  e6 {[%clk 0:01:07]} 3. e4 {[%clk 0:02:58]}  d5 {[%clk 0:01:08]} 4. e5 {[%clk 0:02:59]}  Nfd7 {[%clk 0:01:02]} 5. d4 {[%clk 0:02:46]}  dxc4 {[%clk 0:01:01]} 6. Bxc4 {[%clk 0:02:45]}  c5 {[%clk 0:01:02]} 7. Nf3 {[%clk 0:02:42]}  Nc6 {[%clk 0:01:01]} 8. Qe2 {[%clk 0:02:16]}  cxd4 {[%clk 0:01:00]} 9. Nb5 {[%clk 0:02:16]}  a6 {[%clk 0:00:57]} 10. Nd6+ {[%clk 0:02:08]}  Bxd6 {[%clk 0:00:57]} 11. exd6 {[%clk 0:02:09]}  O-O {[%clk 0:00:54]} 12. O-O {[%clk 0:02:07]}  Nb6 {[%clk 0:00:51]} 13. Bf4 {[%clk 0:02:06]}  Re8 {[%clk 0:00:33]} 14. Bd3 {[%clk 0:01:55]}  Nd5 {[%clk 0:00:32]} 15. Bg3 {[%clk 0:01:45]}  e5 {[%clk 0:00:31]} 16. Bxe5 {[%clk 0:00:52]}  Nxe5 {[%clk 0:00:30]} 17. Nxe5 {[%clk 0:00:51]}  Qxd6 {[%clk 0:00:21]} 18. f4 {[%clk 0:00:41]}  Nxf4 {[%clk 0:00:13]} 19. Rxf4 {[%clk 0:00:41]}  Qxe5 {[%clk 0:00:13]} 20. Re4 {[%clk 0:00:38]}  Qxe4 {[%clk 0:00:08]} 21. Bxe4 {[%clk 0:00:35]}  Bf5 {[%clk 0:00:09]} 22. Rd1 {[%clk 0:00:29]}  Rxe4 {[%clk 0:00:08]} 23. Qf2 {[%clk 0:00:29]}  Bg6 {[%clk 0:00:05]} 24. Rxd4 {[%clk 0:00:29]}  Rae8 {[%clk 0:00:06]} 25. Rxe4 {[%clk 0:00:29]}  Rxe4 {[%clk 0:00:06]} 26. h3 {[%clk 0:00:28]}  h6 {[%clk 0:00:05]} 27. Kh2 {[%clk 0:00:28]}  Kh7 {[%clk 0:00:06]} 28. Qb6 {[%clk 0:00:27]}  Re7 {[%clk 0:00:06]} 29. Qb4 {[%clk 0:00:26]}  Bf5 {[%clk 0:00:05]} 30. Qxe7 {[%clk 0:00:26]} 1-0

[Event "December 19 Early 2023"]
[Site "https://www.chess.com"]
[Date "2023.12.19"]
[Round "3"]
[White "Pak, Yevgeniy"]
[Black "Korchynskyi, Mykola"]
[Result "1-0"]
[Board "167"]
[TimeControl "180+1"]
[WhiteFideId "14201712"]
[BlackFideId "34138005"]
[WhiteElo "2320"]
[BlackElo "2007"]
[WhiteTeam "KAZ"]
[BlackTeam "UKR"]
[WhiteClock "0:00:31"]
[BlackClock "0:00:26"]

1. e4 {[%clk 0:03:00]}  e6 {[%clk 0:02:47]} 2. d4 {[%clk 0:03:00]}  d5 {[%clk 0:02:48]} 3. Nc3 {[%clk 0:03:00]}  Bb4 {[%clk 0:02:46]} 4. e5 {[%clk 0:03:00]}  c5 {[%clk 0:02:46]} 5. a3 {[%clk 0:02:59]}  Bxc3+ {[%clk 0:02:46]} 6. bxc3 {[%clk 0:03:00]}  Ne7 {[%clk 0:02:47]} 7. Qg4 {[%clk 0:02:59]}  Qc7 {[%clk 0:02:47]} 8. Qxg7 {[%clk 0:02:53]}  Rg8 {[%clk 0:02:47]} 9. Qxh7 {[%clk 0:02:53]}  cxd4 {[%clk 0:02:48]} 10. Ne2 {[%clk 0:02:34]}  Nbc6 {[%clk 0:02:45]} 11. f4 {[%clk 0:02:32]}  dxc3 {[%clk 0:02:43]} 12. h4 {[%clk 0:02:28]}  Bd7 {[%clk 0:02:38]} 13. Qd3 {[%clk 0:02:25]}  d4 {[%clk 0:02:38]} 14. h5 {[%clk 0:02:21]}  O-O-O {[%clk 0:02:37]} 15. h6 {[%clk 0:02:20]}  Rh8 {[%clk 0:02:30]} 16. Rb1 {[%clk 0:02:12]}  Kb8 {[%clk 0:02:14]} 17. g4 {[%clk 0:02:08]}  Nd5 {[%clk 0:02:04]} 18. Nxd4 {[%clk 0:01:53]}  Nxd4 {[%clk 0:02:05]} 19. Qxd4 {[%clk 0:01:52]}  Bc6 {[%clk 0:02:05]} 20. Rh3 {[%clk 0:01:40]}  Nf6 {[%clk 0:01:52]} 21. Qg1 {[%clk 0:01:29]}  Ne4 {[%clk 0:01:52]} 22. Bd3 {[%clk 0:01:23]}  Rd7 {[%clk 0:01:46]} 23. Qe3 {[%clk 0:01:14]}  f5 {[%clk 0:01:22]} 24. exf6 {[%clk 0:01:09]}  Nxf6 {[%clk 0:01:20]} 25. g5 {[%clk 0:01:10]}  Nd5 {[%clk 0:01:18]} 26. Qe5 {[%clk 0:01:08]}  Qxe5+ {[%clk 0:00:55]} 27. fxe5 {[%clk 0:01:08]}  Ne7 {[%clk 0:00:52]} 28. g6 {[%clk 0:01:06]}  Nf5 {[%clk 0:00:49]} 29. g7 {[%clk 0:00:53]}  Nxg7 {[%clk 0:00:42]} 30. hxg7 {[%clk 0:00:52]}  Rg8 {[%clk 0:00:42]} 31. Bh6 {[%clk 0:00:50]}  Rd5 {[%clk 0:00:40]} 32. Kf2 {[%clk 0:00:33]}  Rxe5 {[%clk 0:00:31]} 33. Bf4 {[%clk 0:00:33]}  Kc8 {[%clk 0:00:28]} 34. Bxe5 {[%clk 0:00:32]}  Rxg7 {[%clk 0:00:26]} 35. Bxg7 {[%clk 0:00:31]} 1-0

[Event "December 19 Early 2023"]
[Site "https://www.chess.com"]
[Date "2023.12.19"]
[Round "3"]
[White "Demina, Marya"]
[Black "Aaron, Deepak"]
[Result "0-1"]
[Board "169"]
[TimeControl "180+1"]
[WhiteFideId "4195671"]
[BlackFideId "2009412"]
[WhiteElo "1978"]
[BlackElo "2257"]
[WhiteTeam "RUS"]
[BlackTeam "USA"]
[WhiteClock "0:00:00"]
[BlackClock "0:00:05"]

1. d4 {[%clk 0:03:00]}  e6 {[%clk 0:02:59]} 2. Nf3 {[%clk 0:02:59]}  f5 {[%clk 0:02:59]} 3. g3 {[%clk 0:02:58]}  Nf6 {[%clk 0:03:00]} 4. Bg2 {[%clk 0:02:58]}  d5 {[%clk 0:03:00]} 5. O-O {[%clk 0:02:59]}  c6 {[%clk 0:03:01]} 6. c4 {[%clk 0:02:56]}  Bd6 {[%clk 0:03:02]} 7. b3 {[%clk 0:02:55]}  Qe7 {[%clk 0:02:54]} 8. a4 {[%clk 0:02:55]}  O-O {[%clk 0:02:51]} 9. Ba3 {[%clk 0:02:55]}  Bxa3 {[%clk 0:02:52]} 10. Nxa3 {[%clk 0:02:54]}  b6 {[%clk 0:02:52]} 11. Ne5 {[%clk 0:02:45]}  a5 {[%clk 0:02:52]} 12. e3 {[%clk 0:02:13]}  Nfd7 {[%clk 0:02:40]} 13. Nd3 {[%clk 0:02:07]}  Ba6 {[%clk 0:02:38]} 14. Qd2 {[%clk 0:02:04]}  Nf6 {[%clk 0:02:36]} 15. Ne5 {[%clk 0:01:59]}  Rc8 {[%clk 0:02:34]} 16. Rfc1 {[%clk 0:01:58]}  Ne4 {[%clk 0:02:34]} 17. Bxe4 {[%clk 0:01:58]}  fxe4 {[%clk 0:02:34]} 18. f4 {[%clk 0:01:53]}  Nd7 {[%clk 0:02:33]} 19. Nxd7 {[%clk 0:01:45]}  Qxd7 {[%clk 0:02:33]} 20. b4 {[%clk 0:01:32]}  axb4 {[%clk 0:02:17]} 21. Qxb4 {[%clk 0:01:31]}  c5 {[%clk 0:02:18]} 22. Qxb6 {[%clk 0:01:23]}  Rc6 {[%clk 0:02:13]} 23. Qb3 {[%clk 0:01:16]}  cxd4 {[%clk 0:02:00]} 24. cxd5 {[%clk 0:01:03]}  Qxd5 {[%clk 0:01:29]} 25. Qxd5 {[%clk 0:00:35]}  Rxc1+ {[%clk 0:01:29]} 26. Rxc1 {[%clk 0:00:35]}  exd5 {[%clk 0:01:30]} 27. exd4 {[%clk 0:00:35]}  Bd3 {[%clk 0:01:30]} 28. Nb5 {[%clk 0:00:10]}  Rxa4 {[%clk 0:01:27]} 29. Nd6 {[%clk 0:00:10]}  h6 {[%clk 0:01:11]} 30. Nf5 {[%clk 0:00:09]}  Kf7 {[%clk 0:01:04]} 31. Rc7+ {[%clk 0:00:07]}  Kf6 {[%clk 0:01:00]} 32. Nxg7 {[%clk 0:00:03]}  Ra1+ {[%clk 0:00:47]} 33. Kg2 {[%clk 0:00:03]}  Ra2+ {[%clk 0:00:34]} 34. Kg1 {[%clk 0:00:03]}  e3 {[%clk 0:00:30]} 35. Ne8+ {[%clk 0:00:02]}  Ke6 {[%clk 0:00:31]} 36. Ng7+ {[%clk 0:00:02]}  Kd6 {[%clk 0:00:30]} 37. Rc1 {[%clk 0:00:02]}  Be4 {[%clk 0:00:27]} 38. Re1 {[%clk 0:00:01]}  Rg2+ {[%clk 0:00:25]} 39. Kf1 {[%clk 0:00:02]}  Rf2+ {[%clk 0:00:16]} 40. Kg1 {[%clk 0:00:02]}  Rg2+ {[%clk 0:00:16]} 41. Kf1 {[%clk 0:00:02]}  Rxh2 {[%clk 0:00:17]} 42. Rxe3 {[%clk 0:00:02]}  Rd2 {[%clk 0:00:17]} 43. Nh5 {[%clk 0:00:02]}  Ke6 {[%clk 0:00:14]} 44. Ng7+ {[%clk 0:00:02]}  Kf6 {[%clk 0:00:14]} 45. Ne8+ {[%clk 0:00:02]}  Ke7 {[%clk 0:00:15]} 46. Nc7 {[%clk 0:00:02]}  Rxd4 {[%clk 0:00:14]} 47. Nb5 {[%clk 0:00:03]}  Rc4 {[%clk 0:00:12]} 48. g4 {[%clk 0:00:02]}  Kf6 {[%clk 0:00:11]} 49. Kf2 {[%clk 0:00:02]}  Rc2+ {[%clk 0:00:10]} 50. Kg3 {[%clk 0:00:03]}  Rg2+ {[%clk 0:00:11]} 51. Kh4 {[%clk 0:00:03]}  Rh2+ {[%clk 0:00:11]} 52. Kg3 {[%clk 0:00:03]}  Rd2 {[%clk 0:00:10]} 53. Kh4 {[%clk 0:00:03]}  Kg6 {[%clk 0:00:08]} 54. Nd6 {[%clk 0:00:03]}  Bh1 {[%clk 0:00:06]} 55. f5+ {[%clk 0:00:03]}  Kg7 {[%clk 0:00:05]} 56. Re6 {[%clk 0:00:02]}  Rh2+ {[%clk 0:00:03]} 57. Kg3 {[%clk 0:00:02]}  Rg2+ {[%clk 0:00:03]} 58. Kf4 {[%clk 0:00:03]}  Rf2+ {[%clk 0:00:03]} 59. Kg3 {[%clk 0:00:03]}  Rf3+ {[%clk 0:00:02]} 60. Kh4 {[%clk 0:00:03]}  Rf1 {[%clk 0:00:02]} 61. Rg6+ {[%clk 0:00:04]}  Kf8 {[%clk 0:00:02]} 62. Rxh6 {[%clk 0:00:04]}  d4 {[%clk 0:00:03]} 63. Rh8+ {[%clk 0:00:04]}  Ke7 {[%clk 0:00:03]} 64. Rh7+ {[%clk 0:00:04]}  Kxd6 {[%clk 0:00:03]} 65. Kg5 {[%clk 0:00:05]}  d3 {[%clk 0:00:04]} 66. Rh6+ {[%clk 0:00:05]}  Kd5 {[%clk 0:00:04]} 67. f6 {[%clk 0:00:05]}  d2 {[%clk 0:00:04]} 68. f7 {[%clk 0:00:06]}  d1=Q {[%clk 0:00:05]} 69. Rxh1 {[%clk 0:00:06]}  Qd2+ {[%clk 0:00:04]} 70. Kg6 {[%clk 0:00:06]}  Qd3+ {[%clk 0:00:04]} 71. Kg7 {[%clk 0:00:06]}  Qd4+ {[%clk 0:00:05]} 72. Kg8 {[%clk 0:00:06]}  Qxg4+ {[%clk 0:00:05]} 73. Kf8 {[%clk 0:00:07]}  Rxh1 {[%clk 0:00:05]} 74. Ke7 {[%clk 0:00:07]}  Re1+ {[%clk 0:00:06]} 75. Kd8 {[%clk 0:00:00]}  Qg5+ {[%clk 0:00:05]} 0-1